bitfinex-derivatives/quotes_BNBF0:USTF0_20230901
["timestamp","ask_amount","ask_price","bid_price","bid_amount"]
[1693562881937,0.07589928,214.13,211.91,1.71427621]
[1693562882939,0.07589928,214.14,211.91,1.71427621]
[1693562892243,0.07589928,214.13,211.91,1.71427621]
[1693562901953,0.07593443,214.13,211.91,1.71427621]
[1693562907553,0.07593443,214.12,211.91,1.71427621]
[1693562911050,0.07593443,214.13,211.91,1.71427621]
[1693562911254,0.07593443,214.12,211.91,1.71427621]
[1693562915759,0.07593443,214.13,211.91,1.71427621]
[1693562916161,0.07593443,214.12,211.91,1.71427621]
[1693562917260,0.07593443,214.13,211.91,1.71427621]
[1693562922159,0.07593443,214.12,211.91,1.71427621]
[1693562932369,0.07593443,214.12,211.9,1.71427621]
[1693562933772,0.07593443,214.07,211.9,1.71427621]
[1693562934470,0.07593443,214.09,211.9,1.71427621]
[1693562935174,0.07593443,214.1,211.9,1.71427621]
[1693562936273,0.07593443,214.11,211.9,1.71427621]
[1693562937071,0.07593443,214.11,211.85,1.71427621]
[1693562938276,0.07593443,214.12,211.85,1.71427621]
[1693562941473,0.07593443,214.11,211.84,1.71427621]
[1693562941878,0.07593443,214.12,211.84,1.71427621]
[1693562942679,0.07593443,214.11,211.84,1.71427621]
[1693562943281,0.07593443,214.12,211.84,1.71427621]
[1693562944177,0.07593443,214.11,211.84,1.71427621]
[1693562944381,0.07593443,214.12,211.84,1.71427621]
[1693562945284,0.07593443,214.11,211.84,1.71427621]
[1693562946377,0.07593443,214.1,211.84,1.71427621]
[1693562948379,0.07593443,214.09,211.84,1.71427621]
[1693562950183,0.07593443,214.09,211.83,1.71427621]
[1693562950578,0.07593443,214.08,211.83,1.71427621]
[1693562951685,2.53114797,214.21,211.83,1.71427621]
[1693562951887,0.07559873,214.08,211.83,1.71427621]
[1693562952281,0.07559873,214.07,211.83,1.71427621]
[1693562954182,0.07559873,214.06,211.82,1.71427621]
[1693562956189,0.07559873,214.05,211.82,1.71427621]
[1693562958188,0.07559873,214.04,211.82,1.71427621]
[1693562960392,0.07559873,214.03,211.82,1.71427621]
[1693562962292,0.07559873,214.02,211.82,1.71427621]
[1693562963687,0.07559873,214.01,211.82,1.71427621]
[1693562964289,0.50399154,214.05,211.82,1.71427621]
[1693562964290,0.07559873,214.0,211.82,1.71427621]
[1693562965395,0.07559873,213.99,211.82,1.71427621]
[1693562965996,0.15119746,214.01,211.82,1.71427621]
[1693562966296,0.07559873,214.05,211.82,1.71427621]
[1693562967295,0.07559873,214.05,211.87,1.71427621]
[1693562969299,0.07559873,214.06,211.87,1.71427621]
[1693562970301,0.07559873,214.07,211.87,1.71427621]
[1693562971203,0.07559873,214.08,211.87,1.71427621]
[1693562971404,0.07559873,214.08,211.88,1.71427621]
[1693562973304,0.07559873,214.09,211.88,1.71427621]
[1693562975400,0.07559873,214.1,211.88,1.71427621]
[1693562978602,0.07559873,214.11,211.88,1.71427621]
[1693562978803,0.07559873,214.1,211.88,1.71427621]
[1693562979008,0.07559873,214.11,211.88,1.71427621]
[1693562981409,0.07559873,214.12,211.88,1.71427621]
[1693562985213,0.07559873,214.13,211.88,1.71427621]
[1693562986009,0.07559873,214.12,211.88,1.71427621]
[1693562988315,0.07559873,214.12,211.87,1.71427621]
[1693562988516,0.07559873,214.13,211.87,1.71427621]
[1693562992213,0.07559873,214.13,211.88,1.71427621]
[1693562995419,0.07559873,214.12,211.88,1.71427621]
[1693562997219,0.07559873,214.11,211.88,1.71427621]
[1693562997419,0.07559873,214.12,211.88,1.71427621]
[1693562997824,0.07559873,214.11,211.88,1.71427621]
[1693562999320,0.07559873,214.1,211.88,1.71427621]
[1693563000217,0.07559873,214.08,211.88,1.71427621]
[1693563008230,0.07559873,214.09,211.88,1.71427621]
[1693563008726,0.07559873,214.08,211.88,1.71427621]
[1693563009123,0.07559873,214.09,211.88,1.71427621]
[1693563013233,0.07559873,214.1,211.88,1.71427621]
[1693563013833,0.07559873,214.09,211.88,1.71427621]
[1693563014229,0.07559873,214.1,211.88,1.71427621]
[1693563024940,0.07559873,214.09,211.88,1.71427621]
[1693563025942,0.07559873,214.1,211.88,1.71427621]
[1693563026143,0.07559873,214.09,211.88,1.71427621]
[1693563026443,0.07559873,214.1,211.88,1.71427621]
[1693563027040,0.07559873,214.09,211.88,1.71427621]
[1693563027938,0.07559873,214.1,211.88,1.71427621]
[1693563028143,0.07559873,214.09,211.88,1.71427621]
[1693563040749,0.07559873,214.03,211.88,1.71427621]
[1693563040950,0.07559873,214.02,211.88,1.71427621]
[1693563041152,0.07559873,214.05,211.88,1.71427621]
[1693563041950,0.07559873,214.05,211.81,1.71427621]
[1693563042355,0.07559873,214.06,211.81,1.71427621]
[1693563042754,0.07559873,214.07,211.81,1.71427621]
[1693563042955,0.07559873,214.06,211.81,1.71427621]
[1693563043156,0.07559873,214.07,211.81,1.71427621]
[1693563044355,0.07559873,214.08,211.81,1.71427621]
[1693563045260,0.07559873,214.09,211.81,1.71427621]
[1693563047162,0.07559873,214.08,211.81,1.71427621]
[1693563048160,0.07559873,214.07,211.81,1.71427621]
[1693563050367,0.07559873,214.06,211.8,1.71427621]
[1693563051768,0.07559873,214.05,211.8,1.71427621]
[1693563053571,0.07559873,214.04,211.8,1.71427621]
[1693563057275,0.07559873,214.03,211.8,1.71427621]
[1693563059179,0.07559873,214.02,211.8,1.71427621]
[1693563063677,0.07559873,214.01,211.8,1.71427621]
[1693563065781,0.07559873,214.0,211.8,1.71427621]
[1693563066282,0.07559873,214.0,211.79,1.71427621]
[1693563068176,0.07559873,213.99,211.79,1.71427621]
[1693563069985,0.07559873,213.98,211.79,1.71427621]
[1693563071387,0.07559873,213.97,211.79,1.71427621]
[1693563072186,0.07559873,213.96,211.79,1.71427621]
[1693563074186,0.07559873,213.94,211.79,1.71427621]
[1693563074791,0.07559873,213.95,211.79,1.71427621]
[1693563075192,0.07559873,213.92,211.79,1.71427621]
[1693563075786,0.07559873,213.93,211.79,1.71427621]
[1693563077587,0.07559873,213.94,211.8,1.71427621]
[1693563080193,0.07559873,213.95,211.8,1.71427621]
[1693563082886,0.07559873,213.96,211.8,1.71427621]
[1693563084794,0.07559873,213.97,211.8,1.71427621]
[1693563086092,0.07559873,213.98,211.8,1.71427621]
[1693563088196,0.07559873,213.99,211.8,1.71427621]
[1693563089098,0.07559873,213.99,211.81,1.71427621]
[1693563089299,0.07559873,214.0,211.81,1.71427621]
[1693563090700,0.07559873,214.01,211.81,1.71427621]
[1693563090995,0.07559873,214.0,211.81,1.71427621]
[1693563091200,0.07559873,214.01,211.81,1.71427621]
[1693563092201,0.07559873,214.02,211.81,1.71427621]
[1693563093203,0.07559873,214.03,211.81,1.71427621]
[1693563097403,0.07559873,214.03,211.82,1.71427621]
[1693563101606,0.07559873,214.09,211.82,1.71427621]
[1693563101807,0.07559873,214.12,211.82,1.71427621]
[1693563102012,0.07559873,214.13,211.82,1.71427621]
[1693563102707,0.07559873,214.14,211.82,1.71427621]
[1693563103508,0.07559873,214.15,211.82,1.71427621]
[1693563104013,0.07559873,214.16,211.82,1.71427621]
[1693563105315,0.07559873,214.17,211.82,1.71427621]
[1693563105520,0.07559873,214.16,211.82,1.71427621]
[1693563105707,0.07559873,214.17,211.89,1.71427621]
[1693563106910,0.07559873,214.16,211.89,1.71427621]
[1693563108317,0.07559873,214.15,211.89,1.71427621]
[1693563109918,0.07559873,214.14,211.88,1.71427621]
[1693563111218,0.07559873,214.13,211.88,1.71427621]
[1693563113319,0.07559873,214.12,211.88,1.71427621]
[1693563114719,0.07559873,214.11,211.88,1.71427621]
[1693563114920,0.07559873,214.12,211.88,1.71427621]
[1693563115725,0.07559873,214.11,211.88,1.71427621]
[1693563117727,0.07559873,214.1,211.88,1.71427621]
[1693563119829,0.07559873,214.09,211.88,1.71427621]
[1693563122532,0.50399154,214.14,211.88,1.71427621]
[1693563122533,0.07559873,214.1,211.88,1.71427621]
[1693563124330,0.07559873,214.09,211.88,1.71427621]
[1693563126435,0.07559873,214.08,211.88,1.71427621]
[1693563127532,0.07559873,214.14,211.95,1.71427621]
[1693563128337,0.07559873,214.13,211.95,1.71427621]
[1693563128732,0.07559873,214.12,211.95,1.71427621]
[1693563129437,0.15119746,214.13,211.95,1.71427621]
[1693563129438,0.07559873,214.11,211.95,1.71427621]
[1693563130231,0.07559873,214.1,211.95,1.71427621]
[1693563130732,0.07559873,214.09,211.95,1.71427621]
[1693563131332,0.07559873,214.08,211.95,1.71427621]
[1693563132038,0.07559873,214.08,211.93,1.71427621]
[1693563132337,0.07559873,214.07,211.93,1.71427621]
[1693563133740,0.07559873,214.06,211.93,1.71427621]
[1693563134237,0.07559873,214.05,211.93,1.71427621]
[1693563134939,0.07559873,214.04,211.93,1.71427621]
[1693563135840,0.07559873,214.03,211.93,1.71427621]
[1693563136333,0.07559873,214.02,211.93,1.71427621]
[1693563136739,0.07559873,214.03,211.93,1.71427621]
[1693563137339,0.07559873,214.02,211.93,1.71427621]
[1693563139239,0.07559873,214.01,211.93,1.71427621]
[1693563139435,0.07559873,214.02,211.93,1.71427621]
[1693563140338,0.07559873,214.01,211.93,1.71427621]
[1693563145338,0.07559873,214.0,211.93,1.71427621]
[1693563145743,0.07559873,214.01,211.93,1.71427621]
[1693563146642,0.07559873,214.0,211.93,1.71427621]
[1693563146837,0.07559873,214.01,211.93,1.71427621]
[1693563151744,0.07559873,214.02,211.93,1.71427621]
[1693563152340,0.07559873,214.01,211.93,1.71427621]
[1693563152845,0.07559873,214.02,211.93,1.71427621]
[1693563154844,0.07559873,214.03,211.93,1.71427621]
[1693563155044,0.07559873,214.03,211.94,1.71427621]
[1693563155346,0.07559873,214.02,211.94,1.71427621]
[1693563155849,0.07559873,214.04,211.94,1.71427621]
[1693563156643,0.07559873,214.05,211.94,1.71427621]
[1693563157043,0.07559873,214.04,211.94,1.71427621]
[1693563157744,0.07559873,214.05,211.94,1.71427621]
[1693563158848,2.51995771,214.19,211.94,1.71427621]
[1693563158849,0.07559873,214.06,211.94,1.71427621]
[1693563159347,0.07559873,214.06,211.95,1.71427621]
[1693563159645,0.07559873,214.07,211.95,1.71427621]
[1693563160750,0.07559873,214.09,211.95,1.71427621]
[1693563161250,0.07559873,214.07,211.95,1.71427621]
[1693563161649,0.07559873,214.08,211.95,1.71427621]
[1693563162350,0.07559873,214.06,211.95,1.71427621]
[1693563162752,0.07559873,214.07,211.95,1.71427621]
[1693563163552,0.07559873,214.07,211.96,1.71427621]
[1693563166854,0.07559873,214.08,211.96,1.71427621]
[1693563167354,0.07559873,214.07,211.96,1.71427621]
[1693563167554,0.07559873,214.08,211.96,1.71427621]
[1693563169355,0.07559873,214.09,211.96,1.71427621]
[1693563170357,0.07559873,214.1,211.96,1.71427621]
[1693563171257,0.07559873,214.1,211.97,1.71427621]
[1693563171759,0.07559873,214.11,211.97,1.71427621]
[1693563172660,0.07559873,214.12,211.97,1.71427621]
[1693563174658,0.07559873,214.13,211.97,1.71427621]
[1693563175664,0.07559873,214.14,211.97,1.71427621]
[1693563176865,0.07559873,214.15,211.97,1.71427621]
[1693563177566,0.07559873,214.17,211.97,1.71427621]
[1693563178266,0.07559873,214.16,211.97,1.71427621]
[1693563178461,0.07559873,214.17,211.98,1.71427621]
[1693563178665,0.07559873,214.18,211.98,1.71427621]
[1693563179768,0.07559873,214.19,211.98,1.71427621]
[1693563182067,0.07559873,214.2,211.98,1.71427621]
[1693563182269,0.07559873,214.2,211.99,1.71427621]
[1693563196285,0.07559873,214.16,211.99,1.71427621]
[1693563196484,0.07559873,214.15,211.99,1.71427621]
[1693563197380,0.07559873,214.17,211.93,1.71427621]
[1693563198484,0.07559873,214.18,211.93,1.71427621]
[1693563198885,0.07559873,214.17,211.93,1.71427621]
[1693563199184,0.07559873,214.18,211.93,1.71427621]
[1693563200183,0.07559873,214.19,211.93,1.71427621]
[1693563202188,0.07559873,214.2,211.93,1.71427621]
[1693563203991,5.11435899,214.54,211.93,1.71427621]
[1693563204191,0.07585687,214.2,211.93,1.71427621]
[1693563207287,0.07585687,214.21,211.93,1.71427621]
[1693563210188,0.07585687,214.2,211.93,1.71427621]
[1693563211290,0.07585687,214.2,211.92,1.71427621]
[1693563212294,0.07585687,214.19,211.92,1.71427621]
[1693563215289,0.07585687,214.18,211.92,1.71427621]
[1693563217292,0.07585687,214.17,211.92,1.71427621]
[1693563220191,0.07585687,214.16,211.92,1.71427621]
[1693563223298,0.07585687,214.15,211.92,1.71427621]
[1693563225104,0.07585687,214.14,211.92,1.71427621]
[1693563226405,0.07585687,214.15,211.92,1.71427621]
[1693563226601,0.07585687,214.14,211.92,1.71427621]
[1693563228206,0.07585687,214.13,211.92,1.71427621]
[1693563229605,0.15171375,214.15,211.92,1.71427621]
[1693563229606,0.07585687,214.12,211.92,1.71427621]
[1693563231008,0.07585687,214.11,211.92,1.71427621]
[1693563231205,0.07585687,214.1,211.92,1.71427621]
[1693563236113,0.07585687,214.11,211.92,1.71427621]
[1693563238514,0.07585687,214.12,211.92,1.71427621]
[1693563238709,0.07585687,214.11,211.93,1.71427621]
[1693563239214,0.15171375,214.14,211.93,1.71427621]
[1693563239215,0.07585687,214.12,211.93,1.71427621]
[1693563243118,0.07585687,214.12,211.92,1.71427621]
[1693563244215,0.07585687,214.13,211.92,1.71427621]
[1693563246219,0.07585687,214.14,211.92,1.71427621]
[1693563247519,0.07585687,214.14,211.93,1.71427621]
[1693563260724,0.07585687,214.15,211.93,1.71427621]
[1693563305864,0.07585687,214.21,211.93,1.71427621]
[1693563306364,0.07585687,214.23,211.93,1.71427621]
[1693563307064,0.07585687,214.23,212.0,1.71427621]
[1693563307366,0.07585687,214.24,212.0,1.71427621]
[1693563308265,0.07585687,214.25,212.0,1.71427621]
[1693563309366,0.07585687,214.26,212.0,1.71427621]
[1693563310966,0.07585687,214.26,211.99,1.71427621]
[1693563311365,0.07585687,214.27,211.99,1.71427621]
[1693563315372,0.07585687,214.26,211.99,1.71427621]
[1693563319372,0.07585687,214.25,211.99,1.71427621]
[1693563319773,0.07585687,214.26,211.99,1.71427621]
[1693563319976,0.07585687,214.27,211.99,1.71427621]
[1693563321277,0.07585687,214.26,211.99,1.71427621]
[1693563322276,0.07585687,214.25,211.99,1.71427621]
[1693563323281,0.07585687,214.25,212.0,1.71427621]
[1693563324382,0.07585687,214.24,212.0,1.71427621]
[1693563325380,0.07585687,214.23,212.0,1.71427621]
[1693563327280,0.07585687,214.22,212.0,1.71427621]
[1693563328778,0.07585687,214.23,212.0,1.71427621]
[1693563329285,0.07585687,214.22,212.0,1.71427621]
[1693563330283,0.07585687,214.21,212.0,1.71427621]
[1693563332385,0.07585687,214.2,212.0,1.71427621]
[1693563333185,0.07585687,214.19,212.0,1.71427621]
[1693563334482,0.07585687,214.2,212.0,1.71427621]
[1693563334682,0.07585687,214.26,212.0,1.71427621]
[1693563335278,0.07585687,214.25,212.0,1.71427621]
[1693563335784,0.07585687,214.25,212.07,1.71427621]
[1693563336284,0.07585687,214.24,212.07,1.71427621]
[1693563337285,0.50571251,214.28,212.07,1.71427621]
[1693563337286,0.07585687,214.23,212.07,1.71427621]
[1693563338285,0.07585687,214.22,212.07,1.71427621]
[1693563338479,0.07585687,214.21,212.07,1.71427621]
[1693563338884,0.07585687,214.22,212.07,1.71427621]
[1693563339285,0.07585687,214.2,212.07,1.71427621]
[1693563340186,0.07585687,214.21,212.06,1.71427621]
[1693563340385,0.07585687,214.19,212.06,1.71427621]
[1693563341482,2.52856259,214.32,212.06,1.71427621]
[1693563341483,0.07585687,214.2,212.06,1.71427621]
[1693563342286,0.07585687,214.19,212.06,1.71427621]
[1693563344184,0.07585687,214.18,212.06,1.71427621]
[1693563344385,0.07585687,214.18,212.07,1.71427621]
[1693563345787,0.15171375,214.2,212.07,1.71427621]
[1693563345788,0.07585687,214.17,212.07,1.71427621]
[1693563346087,0.07585687,214.18,212.07,1.71427621]
[1693563346287,0.15171375,214.2,212.07,1.71427621]
[1693563346288,0.07585687,214.17,212.07,1.71427621]
[1693563346982,0.15171375,214.19,212.07,1.71427621]
[1693563346983,0.22757062,214.19,212.07,1.71427621]
[1693563347290,0.07585687,214.23,212.07,1.71427621]
[1693563347484,0.07585687,214.24,212.07,1.71427621]
[1693563348282,0.07585687,214.25,212.07,1.71427621]
[1693563348588,0.07585687,214.24,212.14,1.71427621]
[1693563350293,0.07585687,214.25,212.14,1.71427621]
[1693563352696,0.07585687,214.25,212.13,1.71427621]
[1693563353296,0.15171375,214.27,212.13,1.71427621]
[1693563353297,0.07585687,214.26,212.13,1.71427621]
[1693563355297,0.07585687,214.27,212.13,1.71427621]
[1693563358200,0.07585687,214.28,212.13,1.71427621]
[1693563358896,0.50571251,214.33,212.13,1.71427621]
[1693563359099,0.07585687,214.35,212.13,1.71427621]
[1693563359300,0.07585687,214.36,212.13,1.71427621]
[1693563361104,0.07585687,214.36,212.21,1.71427621]
[1693563361698,0.07585687,214.35,212.21,1.71427621]
[1693563362503,1.01142503,214.43,212.21,1.71427621]
[1693563362504,0.07585687,214.36,212.21,1.71427621]
[1693563363696,0.07585687,214.35,212.21,1.71427621]
[1693563363902,0.07585687,214.36,212.21,1.71427621]
[1693563365004,0.07585687,214.37,212.21,1.71427621]
[1693563365204,0.07585687,214.36,212.21,1.71427621]
[1693563367506,0.07585687,214.35,212.21,1.71427621]
[1693563367705,0.07585687,214.36,212.21,1.71427621]
[1693563368306,0.07585687,214.35,212.21,1.71427621]
[1693563369401,0.07585687,214.34,212.21,1.71427621]
[1693563372308,0.07585687,214.33,212.21,1.71427621]
[1693563374310,0.07585687,214.32,212.21,1.71427621]
[1693563376311,0.07585687,214.31,212.21,1.71427621]
[1693563377413,0.07585687,214.3,212.21,1.71427621]
[1693563378812,0.07585687,214.29,212.21,1.71427621]
[1693563379216,2.52856259,214.43,212.21,1.71427621]
[1693563379217,0.07585687,214.28,212.21,1.71427621]
[1693563380309,0.07585687,214.27,212.21,1.71427621]
[1693563380813,0.07585687,214.26,212.21,1.71427621]
[1693563381209,0.07585687,214.25,212.21,1.71427621]
[1693563382215,0.07585687,214.24,212.21,1.71427621]
[1693563382410,0.07585687,214.25,212.21,1.71427621]
[1693563382613,0.07585687,214.24,212.21,1.71427621]
[1693563385111,0.07273929,214.24,212.21,1.71427621]
[1693563386416,0.15171375,214.25,212.21,1.71427621]
[1693563389320,0.15171375,214.24,212.21,1.71427621]
[1693563390220,0.15171375,214.23,212.21,1.71427621]
[1693563391321,0.15171375,214.22,212.21,1.71427621]
[1693563391522,0.15171375,214.22,212.2,1.71427621]
[1693563392222,0.15171375,214.21,212.2,1.71427621]
[1693563393420,0.15171375,214.18,212.2,1.71427621]
[1693563395225,0.15171375,214.19,212.2,1.71427621]
[1693563396026,0.15171375,214.19,212.21,1.71427621]
[1693563396326,0.15171375,214.2,212.21,1.71427621]
[1693563396826,0.15171375,214.21,212.21,1.71427621]
[1693563397225,0.15171375,214.22,212.21,1.71427621]
[1693563398422,0.15171375,214.24,212.21,1.71427621]
[1693563399526,0.15171375,214.26,212.21,1.71427621]
[1693563400225,0.15171375,214.26,212.23,1.71427621]
[1693563400427,0.15171375,214.28,212.23,1.71427621]
[1693563400622,0.15171375,214.29,212.23,1.71427621]
[1693563401226,0.15171375,214.31,212.23,1.71427621]
[1693563402323,0.15171375,214.33,212.23,1.71427621]
[1693563403321,0.15171375,214.36,212.23,1.71427621]
[1693563404529,0.15171375,214.39,212.25,1.71427621]
[1693563405331,0.15171375,214.42,212.25,1.71427621]
[1693563406232,0.15171375,214.46,212.25,1.71427621]
[1693563407429,0.15171375,214.47,212.25,1.71427621]
[1693563408436,0.15171375,214.48,212.25,1.71427621]
[1693563408638,0.15171375,214.48,212.27,1.71427621]
[1693563410333,0.15171375,214.49,212.27,1.71427621]
[1693563411332,0.15171375,214.5,212.27,1.71427621]
[1693563413441,0.15171375,214.51,212.27,1.71427621]
[1693563424655,0.15171375,214.5,212.27,1.71427621]
[1693563427359,0.15171375,214.51,212.27,1.71427621]
[1693563429357,0.15171375,214.5,212.27,1.71427621]
[1693563431662,0.15171375,214.51,212.27,1.71427621]
[1693563432459,0.15171375,214.5,212.27,1.71427621]
[1693563433266,0.15171375,214.51,212.27,1.71427621]
[1693563434064,0.15171375,214.5,212.27,1.71427621]
[1693563434964,0.15171375,214.51,212.27,1.71427621]
[1693563435164,0.15171375,214.5,212.27,1.71427621]
[1693563452978,0.15171375,214.51,212.27,1.71427621]
[1693563454081,0.15171375,214.5,212.27,1.71427621]
[1693563466385,0.15171375,214.47,212.27,1.71427621]
[1693563467391,0.15171375,214.48,212.22,1.71427621]
[1693563467786,0.15171375,214.47,212.22,1.71427621]
[1693563468387,0.15171375,214.48,212.22,1.71427621]
[1693563469388,0.15171375,214.49,212.22,1.71427621]
[1693563471391,0.15171375,214.5,212.22,1.71427621]
[1693563471988,0.15171375,214.5,212.21,1.71427621]
[1693563475493,0.15171375,214.51,212.21,1.71427621]
[1693563476797,0.15171375,214.5,212.21,1.71427621]
[1693563479394,0.15171375,214.49,212.21,1.71427621]
[1693563480898,0.15171375,214.49,212.2,1.71427621]
[1693563483797,0.15171375,214.48,212.2,1.71427621]
[1693563485604,0.15171375,214.49,212.2,1.71427621]
[1693563486706,0.15171375,214.48,212.2,1.71427621]
[1693563488711,0.15171375,214.49,212.2,1.71427621]
[1693563489208,0.15171375,214.49,212.22,1.71427621]
[1693563490507,0.15171375,214.48,212.22,1.71427621]
[1693563494405,0.15171375,214.47,212.22,1.71427621]
[1693563494810,0.15171375,214.48,212.22,1.71427621]
[1693563495208,0.15171375,214.47,212.22,1.71427621]
[1693563497403,0.15171375,214.46,212.22,1.71427621]
[1693563498006,0.15171375,214.46,212.21,1.71427621]
[1693563498409,0.15171375,214.45,212.21,1.71427621]
[1693563499409,0.15171375,214.44,212.21,1.71427621]
[1693563500312,0.15171375,214.43,212.21,1.71427621]
[1693563505218,0.0762053,214.41,212.21,1.71427621]
[1693563508822,0.0762053,214.42,212.21,1.71427621]
[1693563512418,0.0762053,214.43,212.21,1.71427621]
[1693563514321,0.0762053,214.44,212.21,1.71427621]
[1693563514723,0.0762053,214.44,212.22,1.71427621]
[1693563520127,0.0762053,214.43,212.22,1.71427621]
[1693563523724,0.0762053,214.42,212.22,1.71427621]
[1693563523938,0.0762053,214.36,212.15,1.71427621]
[1693563524530,0.0762053,214.37,212.15,1.71427621]
[1693563524727,0.0762053,214.39,212.15,1.71427621]
[1693563525631,0.0762053,214.4,212.15,1.71427621]
[1693563526527,0.0762053,214.41,212.15,1.71427621]
[1693563527625,0.0762053,214.42,212.15,1.71427621]
[1693563528830,0.0762053,214.43,212.15,1.71427621]
[1693563530633,0.0762053,214.42,212.15,1.71427621]
[1693563531630,0.0762053,214.41,212.15,1.71427621]
[1693563533637,0.0762053,214.4,212.15,1.71427621]
[1693563535041,0.0762053,214.39,212.15,1.71427621]
[1693563536741,0.0762053,214.38,212.15,1.71427621]
[1693563536938,0.0762053,214.38,212.14,1.71427621]
[1693563537538,0.0762053,214.37,212.14,1.71427621]
[1693563539443,0.0762053,214.36,212.14,1.71427621]
[1693563539643,0.0762053,214.35,212.14,1.71427621]
[1693563541546,0.0762053,214.35,212.12,1.71427621]
[1693563543443,0.0762053,214.34,212.12,1.71427621]
[1693563544647,0.0762053,214.33,212.12,1.71427621]
[1693563546247,0.0762053,214.32,212.12,1.71427621]
[1693563548147,0.0762053,214.31,212.12,1.71427621]
[1693563549547,0.0762053,214.3,212.12,1.71427621]
[1693563550948,0.0762053,214.3,212.11,1.71427621]
[1693563551751,0.0762053,214.29,212.11,1.71427621]
[1693563552646,0.0762053,214.28,212.11,1.71427621]
[1693563554553,0.0762053,214.27,212.11,1.71427621]
[1693563555652,0.0762053,214.26,212.11,1.71427621]
[1693563557848,0.0762053,214.25,212.11,1.71427621]
[1693563558655,0.0762053,214.23,212.11,1.71427621]
[1693563561356,0.0762053,214.24,212.11,1.71427621]
[1693563563658,0.0762053,214.23,212.11,1.71427621]
[1693563564360,0.0762053,214.23,212.1,1.71427621]
[1693563566163,0.0762053,214.24,212.1,1.71427621]
[1693563568765,0.0762053,214.24,212.11,1.71427621]
[1693563569767,0.0762053,214.25,212.11,1.71427621]
[1693563571564,0.0762053,214.26,212.11,1.71427621]
[1693563571763,0.0762053,214.25,212.11,1.71427621]
[1693563573565,0.0762053,214.26,212.11,1.71427621]
[1693563574570,0.0762053,214.27,212.11,1.71427621]
[1693563575772,0.0762053,214.28,212.11,1.71427621]
[1693563576773,0.0762053,214.29,212.11,1.71427621]
[1693563577668,0.0762053,214.3,212.11,1.71427621]
[1693563578776,0.0762053,214.31,212.11,1.71427621]
[1693563579770,0.0762053,214.33,212.11,1.71427621]
[1693563580670,0.0762053,214.34,212.11,1.71427621]
[1693563581670,0.0762053,214.34,212.12,1.71427621]
[1693563587477,0.0762053,214.35,212.12,1.71427621]
[1693563593279,0.0762053,214.34,212.12,1.71427621]
[1693563602186,0.0762053,214.33,212.12,1.71427621]
[1693563628198,0.0762053,214.32,212.12,1.71427621]
[1693563648623,0.0762053,214.32,210.62,0.43415671]
[1693563648624,0.0762053,214.32,212.11,1.71427621]
[1693563656631,0.0762053,214.33,212.11,1.71427621]
[1693563660734,0.0762053,214.32,212.11,1.71427621]
[1693563660927,0.15171375,214.35,212.11,1.71427621]
[1693563660928,0.0762053,214.33,212.11,1.71427621]
[1693563664436,0.0762053,214.32,212.11,1.71427621]
[1693563676044,0.0762053,214.33,212.11,1.71427621]
[1693563676243,0.0762053,214.34,212.11,1.71427621]
[1693563676843,0.0762053,214.35,212.11,1.71427621]
[1693563678445,0.0762053,214.35,212.13,1.71427621]
[1693563678644,0.0762053,214.36,212.13,1.71427621]
[1693563678846,0.0762053,214.41,212.13,1.71427621]
[1693563679845,0.0762053,214.43,212.13,1.71427621]
[1693563680846,5.12903114,214.92,212.13,1.71427621]
[1693563681140,0.85675949,214.91,212.13,1.71427621]
[1693563681347,0.07612229,214.44,212.13,1.71427621]
[1693563681847,0.07612229,214.45,212.13,1.71427621]
[1693563682440,0.07612229,214.45,212.18,1.71427621]
[1693563682846,0.07612229,214.46,212.18,1.71427621]
[1693563686543,0.07612229,214.45,212.18,1.71427621]
[1693563688652,0.07612229,214.44,212.18,1.71427621]
[1693563690650,0.07612229,214.43,212.18,1.71427621]
[1693563692651,0.07612229,214.42,212.18,1.71427621]
[1693563694550,0.07612229,214.42,212.17,1.71427621]
[1693563694851,0.07612229,214.41,212.17,1.71427621]
[1693563695050,0.07612229,214.37,212.17,1.71427621]
[1693563695251,0.07612229,214.36,212.17,1.71427621]
[1693563698656,0.07612229,214.36,212.12,1.71427621]
[1693563700460,0.07612229,214.35,212.12,1.71427621]
[1693563700653,0.07612229,214.36,212.12,1.71427621]
[1693563700852,0.07612229,214.35,212.12,1.71427621]
[1693563706562,0.07612229,214.35,212.11,1.71427621]
[1693563710768,0.07612229,214.34,212.11,1.71427621]
[1693563715169,0.07612229,214.34,212.1,1.71427621]
[1693563718075,0.07612229,214.35,212.1,1.71427621]
[1693563718766,0.07612229,214.34,212.1,1.71427621]
[1693563719371,0.07612229,214.34,212.11,1.71427621]
[1693563719567,0.07612229,214.35,212.11,1.71427621]
[1693563719770,0.07612229,214.34,212.11,1.71427621]
[1693563723675,0.07612229,214.33,212.11,1.71427621]
[1693563725673,0.07612229,214.32,212.11,1.71427621]
[1693563727574,0.07612229,214.32,212.1,1.71427621]
[1693563727777,0.07612229,214.31,212.1,1.71427621]
[1693563728675,0.07612229,214.3,212.1,1.71427621]
[1693563729677,0.07612229,214.29,212.1,1.71427621]
[1693563730975,0.07612229,214.28,212.1,1.71427621]
[1693563734978,0.07612229,214.28,212.09,1.71427621]
[1693563735874,0.07612229,214.27,212.09,1.71427621]
[1693563738881,0.07612229,214.26,212.09,1.71427621]